[Event "*** Titled Tuesday Blitz"]
[Site "Chess.com"]
[Date "2021.04.27"]
[Round "7"]
[White "SF-96"]
[Black "Vugar_Manafov"]
[Result "1-0"]
[WhiteElo "2611"]
[BlackElo "2728"]
[TimeControl "180+1"]
[EndTime "11:17:21 PDT"]
[Termination "SF-96 won by resignation"]

1. Nf3 {[%clk 0:03:00.9]} 1... Nf6 {[%clk 0:02:58]} 2. g3 {[%clk 0:03:01.1]}
2... d5 {[%clk 0:02:56.6]} 3. Bg2 {[%clk 0:03:01.4]} 3... c6 {[%clk 0:02:56.8]}
4. O-O {[%clk 0:03:01.8]} 4... Bg4 {[%clk 0:02:57.3]} 5. c4 {[%clk 0:03:02]}
5... e6 {[%clk 0:02:56.4]} 6. d4 {[%clk 0:03:00.1]} 6... Nbd7 {[%clk 0:02:55.2]}
7. Qb3 {[%clk 0:02:57.4]} 7... Qb6 {[%clk 0:02:52.8]} 8. h3 {[%clk 0:02:55.7]}
8... Bh5 {[%clk 0:02:46.7]} 9. Nc3 {[%clk 0:02:52.7]} 9... Be7 {[%clk
0:02:43.1]} 10. cxd5 {[%clk 0:02:45.5]} 10... exd5 {[%clk 0:02:41.9]} 11. Be3
{[%clk 0:02:39.2]} 11... O-O {[%clk 0:02:40.5]} 12. Ne5 {[%clk 0:02:35.8]} 12...
Nxe5 {[%clk 0:02:24.2]} 13. dxe5 {[%clk 0:02:35.9]} 13... Qxb3 {[%clk
0:02:24.1]} 14. axb3 {[%clk 0:02:36.8]} 14... Nd7 {[%clk 0:02:24.2]} 15. f4
{[%clk 0:02:33.4]} 15... f6 {[%clk 0:02:23.6]} 16. e6 {[%clk 0:02:19.7]} 16...
Nc5 {[%clk 0:02:21.8]} 17. g4 {[%clk 0:02:20.1]} 17... Be8 {[%clk 0:02:19.1]}
18. f5 {[%clk 0:01:56.3]} 18... Nxb3 {[%clk 0:02:08.3]} 19. Rxa7 {[%clk
0:01:56.5]} 19... Rxa7 {[%clk 0:02:06.7]} 20. Bxa7 {[%clk 0:01:57.4]} 20... d4
{[%clk 0:02:02.7]} 21. Ne4 {[%clk 0:01:51.8]} 21... c5 {[%clk 0:02:02.4]} 22.
Bb8 {[%clk 0:01:29.4]} 22... Bb5 {[%clk 0:01:56.2]} 23. Bd6 {[%clk 0:01:29.4]}
23... Re8 {[%clk 0:01:41.1]} 24. Bxe7 {[%clk 0:01:11.4]} 24... Rxe7 {[%clk
0:01:42]} 25. Re1 {[%clk 0:01:12]} 25... c4 {[%clk 0:01:24.2]} 26. Nd6 {[%clk
0:01:11.8]} 26... Ba6 {[%clk 0:01:23.4]} 27. Bd5 {[%clk 0:01:05.6]} 27... Na5
{[%clk 0:01:17.3]} 28. Ra1 {[%clk 0:00:54.7]} 28... b6 {[%clk 0:01:10]} 29. Bxc4
{[%clk 0:00:35.5]} 29... Bxc4 {[%clk 0:00:45.7]} 30. Nxc4 {[%clk 0:00:35.6]}
30... Ra7 {[%clk 0:00:45.4]} 31. Nxb6 {[%clk 0:00:32.3]} 31... Kf8 {[%clk
0:00:44.3]} 32. b4 {[%clk 0:00:23.3]} 32... Nc6 {[%clk 0:00:43.1]} 33. Rxa7
{[%clk 0:00:23.9]} 33... Nxa7 {[%clk 0:00:44]} 34. Nd5 {[%clk 0:00:23.7]} 34...
Nb5 {[%clk 0:00:41.2]} 35. Kf2 {[%clk 0:00:20.8]} 35... Ke8 {[%clk 0:00:37.6]}
36. Kf3 {[%clk 0:00:21.3]} 36... Nd6 {[%clk 0:00:35.1]} 37. e3 {[%clk
0:00:13.1]} 37... d3 {[%clk 0:00:24.3]} 38. Nf4 {[%clk 0:00:13.3]} 38... d2
{[%clk 0:00:22.9]} 39. Ke2 {[%clk 0:00:13.7]} 39... Ne4 {[%clk 0:00:23.1]} 40.
Nd5 {[%clk 0:00:10.3]} 40... g6 {[%clk 0:00:20.3]} 41. b5 {[%clk 0:00:10.4]}
41... gxf5 {[%clk 0:00:19.6]} 42. gxf5 {[%clk 0:00:11.3]} 42... Ng3+ {[%clk
0:00:19.9]} 43. Kxd2 {[%clk 0:00:10.3]} 43... Nxf5 {[%clk 0:00:20.7]} 44. b6
{[%clk 0:00:10.9]} 44... Nd6 {[%clk 0:00:20.1]} 45. Kd3 {[%clk 0:00:08.9]} 45...
Kd8 {[%clk 0:00:20.4]} 46. Kd4 {[%clk 0:00:08.1]} 46... Kc8 {[%clk 0:00:19.8]}
47. Nxf6 {[%clk 0:00:07.7]} 47... Kb7 {[%clk 0:00:19.6]} 48. Ke5 {[%clk
0:00:08.1]} 48... Nc4+ {[%clk 0:00:19.1]} 49. Kf4 {[%clk 0:00:07.8]} 49... Kxb6
{[%clk 0:00:18.6]} 50. e7 {[%clk 0:00:08.3]} 1-0

[Event "*** Titled Tuesday Blitz"]
[Site "Chess.com"]
[Date "2021.04.27"]
[Round "7"]
[White "IsuruAlahakoon"]
[Black "Pertinhez76"]
[Result "1-0"]
[WhiteElo "2180"]
[BlackElo "2078"]
[TimeControl "180+1"]
[EndTime "11:17:21 PDT"]
[Termination "IsuruAlahakoon won on time"]

1. Nf3 {[%clk 0:02:59.7]} 1... g6 {[%clk 0:02:58.3]} 2. d4 {[%clk 0:02:58.7]}
2... Bg7 {[%clk 0:02:58]} 3. Nc3 {[%clk 0:02:57.2]} 3... d5 {[%clk 0:02:55]} 4.
Bf4 {[%clk 0:02:55.7]} 4... a6 {[%clk 0:02:53.1]} 5. a4 {[%clk 0:02:50.1]} 5...
Nf6 {[%clk 0:02:47.4]} 6. e3 {[%clk 0:02:48]} 6... Bg4 {[%clk 0:02:40]} 7. h3
{[%clk 0:02:44.7]} 7... Bxf3 {[%clk 0:02:38.9]} 8. Qxf3 {[%clk 0:02:45.6]} 8...
c6 {[%clk 0:02:35.2]} 9. Bd3 {[%clk 0:02:43.7]} 9... Nbd7 {[%clk 0:02:34.3]} 10.
O-O {[%clk 0:02:39.6]} 10... O-O {[%clk 0:02:33.1]} 11. b4 {[%clk 0:02:26.4]}
11... Nh5 {[%clk 0:02:19.6]} 12. Bg5 {[%clk 0:02:18.8]} 12... f6 {[%clk
0:02:16.1]} 13. Bh4 {[%clk 0:02:11.9]} 13... Bh6 {[%clk 0:02:10.9]} 14. Qg4
{[%clk 0:01:58.2]} 14... Qe8 {[%clk 0:01:48.9]} 15. e4 {[%clk 0:01:39.9]} 15...
dxe4 {[%clk 0:01:46.1]} 16. Qxe4 {[%clk 0:01:36.4]} 16... e5 {[%clk 0:01:38.4]}
17. dxe5 {[%clk 0:01:28.8]} 17... Qxe5 {[%clk 0:01:30.5]} 18. Qc4+ {[%clk
0:01:25]} 18... Kh8 {[%clk 0:01:29.4]} 19. Rae1 {[%clk 0:01:23.8]} 19... Qf4
{[%clk 0:01:17.8]} 20. Re7 {[%clk 0:01:11.8]} 20... Rad8 {[%clk 0:01:08.8]} 21.
g4 {[%clk 0:00:57.9]} 21... Qxc4 {[%clk 0:00:49]} 22. Bxc4 {[%clk 0:00:57]}
22... Ne5 {[%clk 0:00:49.6]} 23. Bb3 {[%clk 0:00:51.2]} 23... Nf3+ {[%clk
0:00:47.7]} 24. Kh1 {[%clk 0:00:49.4]} 24... Nxh4 {[%clk 0:00:46.1]} 25. gxh5
{[%clk 0:00:48.8]} 25... b5 {[%clk 0:00:28.2]} 26. axb5 {[%clk 0:00:39]} 26...
axb5 {[%clk 0:00:27.1]} 27. Ne4 {[%clk 0:00:39.5]} 27... Nf3 {[%clk 0:00:21.7]}
28. hxg6 {[%clk 0:00:33.2]} 28... hxg6 {[%clk 0:00:20.2]} 29. Nc5 {[%clk
0:00:30.3]} 29... Rfe8 {[%clk 0:00:17.7]} 30. Rf7 {[%clk 0:00:26.8]} 30... Bg7
{[%clk 0:00:16.1]} 31. Ne6 {[%clk 0:00:23.6]} 31... Rxe6 {[%clk 0:00:15.3]} 32.
Bxe6 {[%clk 0:00:21.6]} 32... Ng5 {[%clk 0:00:16.2]} 33. Re7 {[%clk 0:00:20.4]}
33... Bf8 {[%clk 0:00:15.9]} 34. Rd7 {[%clk 0:00:13.8]} 34... Re8 {[%clk
0:00:16]} 35. Bf7 {[%clk 0:00:12.9]} 35... Nxf7 {[%clk 0:00:13.8]} 36. Rxf7
{[%clk 0:00:13.8]} 36... Bxb4 {[%clk 0:00:12]} 37. Rc7 {[%clk 0:00:13]} 37...
Re5 {[%clk 0:00:09.2]} 38. Rxc6 {[%clk 0:00:11.6]} 38... Kg7 {[%clk 0:00:09.6]}
39. Rd1 {[%clk 0:00:10.6]} 39... Rh5 {[%clk 0:00:08.5]} 40. Rd7+ {[%clk
0:00:10.1]} 40... Kh6 {[%clk 0:00:08.8]} 41. Kg2 {[%clk 0:00:10.4]} 41... Be1
{[%clk 0:00:07.1]} 42. Rxf6 {[%clk 0:00:08.8]} 42... Rg5+ {[%clk 0:00:07.2]} 43.
Kf1 {[%clk 0:00:07.9]} 43... Bc3 {[%clk 0:00:05.1]} 44. Rff7 {[%clk 0:00:08.8]}
44... Rf5 {[%clk 0:00:00.8]} 45. h4 {[%clk 0:00:09.7]} 1-0

[Event "*** Titled Tuesday Blitz"]
[Site "Chess.com"]
[Date "2021.04.27"]
[Round "7"]
[White "woodhy"]
[Black "Pantata007"]
[Result "1-0"]
[WhiteElo "2490"]
[BlackElo "2314"]
[TimeControl "180+1"]
[EndTime "11:17:22 PDT"]
[Termination "woodhy won on time"]

1. e4 {[%clk 0:03:00.9]} 1... e5 {[%clk 0:02:57.8]} 2. Nf3 {[%clk 0:02:58.5]}
2... Nc6 {[%clk 0:02:57.7]} 3. Bb5 {[%clk 0:02:58.5]} 3... a6 {[%clk 0:02:57.5]}
4. Bxc6 {[%clk 0:02:57.5]} 4... dxc6 {[%clk 0:02:57.9]} 5. O-O {[%clk
0:02:58.4]} 5... Bg4 {[%clk 0:02:58.2]} 6. h3 {[%clk 0:02:58.5]} 6... h5 {[%clk
0:02:58.7]} 7. d3 {[%clk 0:02:58.8]} 7... Qf6 {[%clk 0:02:56.9]} 8. Be3 {[%clk
0:02:59]} 8... Bxf3 {[%clk 0:02:56.9]} 9. Qxf3 {[%clk 0:02:59.5]} 9... Qxf3
{[%clk 0:02:57.3]} 10. gxf3 {[%clk 0:03:00.4]} 10... Bd6 {[%clk 0:02:57.7]} 11.
Nd2 {[%clk 0:03:00.7]} 11... Ne7 {[%clk 0:02:58.1]} 12. Rfb1 {[%clk 0:03:01.3]}
12... Ng6 {[%clk 0:02:52.1]} 13. Kf1 {[%clk 0:03:01.1]} 13... c5 {[%clk
0:02:26.7]} 14. Ke2 {[%clk 0:03:00.9]} 14... f6 {[%clk 0:02:25.9]} 15. Rg1
{[%clk 0:02:59.9]} 15... Kf7 {[%clk 0:02:25.7]} 16. Nc4 {[%clk 0:02:49.3]} 16...
Nf8 {[%clk 0:02:25.5]} 17. c3 {[%clk 0:02:45.3]} 17... Ne6 {[%clk 0:02:22.4]}
18. Na5 {[%clk 0:02:35.1]} 18... b6 {[%clk 0:02:14.2]} 19. Nc4 {[%clk
0:02:32.7]} 19... h4 {[%clk 0:01:59.1]} 20. Rg2 {[%clk 0:02:20.8]} 20... g5
{[%clk 0:01:58.4]} 21. Rgg1 {[%clk 0:02:21.2]} 21... a5 {[%clk 0:01:51.9]} 22.
a4 {[%clk 0:02:19.3]} 22... Be7 {[%clk 0:01:44.5]} 23. Kd2 {[%clk 0:02:12.2]}
23... Rad8 {[%clk 0:01:42.6]} 24. Kc2 {[%clk 0:02:12.3]} 24... Rd7 {[%clk
0:01:41.5]} 25. Rad1 {[%clk 0:02:12.7]} 25... Rhd8 {[%clk 0:01:41.5]} 26. Bc1
{[%clk 0:02:12.8]} 26... Bf8 {[%clk 0:01:16.2]} 27. Rh1 {[%clk 0:01:57.4]} 27...
Be7 {[%clk 0:01:14.9]} 28. Be3 {[%clk 0:01:50.5]} 28... Bf8 {[%clk 0:01:11]} 29.
Rh2 {[%clk 0:01:44.3]} 29... Be7 {[%clk 0:01:10]} 30. Rg2 {[%clk 0:01:44.5]}
30... Bf8 {[%clk 0:01:09.3]} 31. Rd2 {[%clk 0:01:44.9]} 31... Nf4 {[%clk
0:00:58.7]} 32. Bxf4 {[%clk 0:01:44.3]} 32... exf4 {[%clk 0:00:59.6]} 33. Rg1
{[%clk 0:01:41.4]} 33... Bd6 {[%clk 0:00:59.1]} 34. Rgd1 {[%clk 0:01:40.9]}
34... Be5 {[%clk 0:00:58.5]} 35. Na3 {[%clk 0:01:38.9]} 35... Ke6 {[%clk
0:00:56.1]} 36. Nb5 {[%clk 0:01:38.7]} 36... c6 {[%clk 0:00:54.5]} 37. Na3
{[%clk 0:01:38.5]} 37... Bc7 {[%clk 0:00:51.2]} 38. d4 {[%clk 0:01:36.6]} 38...
cxd4 {[%clk 0:00:44.8]} 39. cxd4 {[%clk 0:01:37.5]} 39... Bd6 {[%clk 0:00:40]}
40. Nc4 {[%clk 0:01:36.8]} 40... Bb4 {[%clk 0:00:39.3]} 41. Rd3 {[%clk
0:01:19.4]} 41... b5 {[%clk 0:00:36.9]} 42. axb5 {[%clk 0:00:43.4]} 42... cxb5
{[%clk 0:00:37.8]} 43. Nb6 {[%clk 0:00:42.6]} 43... Rc7+ {[%clk 0:00:22.3]} 44.
Kb3 {[%clk 0:00:41.9]} 44... Bf8 {[%clk 0:00:16.5]} 45. Nd5 {[%clk 0:00:39.9]}
45... Rb7 {[%clk 0:00:15.8]} 46. Nc3 {[%clk 0:00:38]} 46... a4+ {[%clk 0:00:15]}
47. Ka2 {[%clk 0:00:37.3]} 47... Bb4 {[%clk 0:00:08.7]} 48. d5+ {[%clk 0:00:36]}
48... Ke5 {[%clk 0:00:08.3]} 49. Ne2 {[%clk 0:00:29.1]} 49... Rd6 {[%clk
0:00:08.1]} 50. Nd4 {[%clk 0:00:28.9]} 50... Rdb6 {[%clk 0:00:02.5]} 51. Nc6+
{[%clk 0:00:28.5]} 51... Rxc6 {[%clk 0:00:02.3]} 52. dxc6 {[%clk 0:00:29.4]}
52... Rc7 {[%clk 0:00:03.1]} 53. Rd5+ {[%clk 0:00:29.4]} 53... Ke6 {[%clk
0:00:03.1]} 54. Rxb5 {[%clk 0:00:29.7]} 54... Be7 {[%clk 0:00:02.5]} 55. Rc1
{[%clk 0:00:27.9]} 55... Ra7 {[%clk 0:00:01.3]} 56. c7 {[%clk 0:00:27.3]} 1-0

[Event "*** Titled Tuesday Blitz"]
[Site "Chess.com"]
[Date "2021.04.27"]
[Round "7"]
[White "attack2mateU"]
[Black "sergiochess83"]
[Result "1-0"]
[WhiteElo "2754"]
[BlackElo "2874"]
[TimeControl "180+1"]
[EndTime "11:17:24 PDT"]
[Termination "attack2mateU won on time"]

1. e4 {[%clk 0:03:00.9]} 1... c6 {[%clk 0:02:59.5]} 2. Nc3 {[%clk 0:03:00.6]}
2... d5 {[%clk 0:02:58.9]} 3. Nf3 {[%clk 0:03:01.3]} 3... Bg4 {[%clk 0:02:54.6]}
4. h3 {[%clk 0:03:01]} 4... Bxf3 {[%clk 0:02:54.8]} 5. Qxf3 {[%clk 0:03:01.8]}
5... Nf6 {[%clk 0:02:55.5]} 6. Be2 {[%clk 0:02:58]} 6... e6 {[%clk 0:02:54.9]}
7. O-O {[%clk 0:02:57.7]} 7... Bc5 {[%clk 0:02:53.5]} 8. e5 {[%clk 0:02:30.3]}
8... Nfd7 {[%clk 0:02:50.9]} 9. Qg4 {[%clk 0:02:30.4]} 9... Nxe5 {[%clk
0:02:02.3]} 10. Qxg7 {[%clk 0:02:30.1]} 10... Ng6 {[%clk 0:02:02.5]} 11. Qh6
{[%clk 0:02:27.6]} 11... Nd7 {[%clk 0:02:00.2]} 12. d3 {[%clk 0:02:24.2]} 12...
Bd4 {[%clk 0:01:45.4]} 13. Nd1 {[%clk 0:02:16.9]} 13... Qe7 {[%clk 0:01:34]} 14.
c3 {[%clk 0:02:15.6]} 14... Bf6 {[%clk 0:01:31.4]} 15. d4 {[%clk 0:02:14]} 15...
O-O-O {[%clk 0:01:30.8]} 16. Ne3 {[%clk 0:01:32.5]} 16... Bg5 {[%clk 0:01:17.8]}
17. Qh5 {[%clk 0:01:32.4]} 17... Nf4 {[%clk 0:01:15.6]} 18. Qf3 {[%clk
0:01:32.4]} 18... Rhg8 {[%clk 0:01:09.1]} 19. Re1 {[%clk 0:01:27.5]} 19... Nxe2+
{[%clk 0:01:05.3]} 20. Rxe2 {[%clk 0:01:26.3]} 20... Qf6 {[%clk 0:00:59.4]} 21.
Qxf6 {[%clk 0:01:14.5]} 21... Nxf6 {[%clk 0:01:00.3]} 22. Nf1 {[%clk 0:00:54.3]}
22... Kd7 {[%clk 0:00:54.3]} 23. Nh2 {[%clk 0:00:36.4]} 23... Ne4 {[%clk
0:00:49.2]} 24. f3 {[%clk 0:00:34.3]} 24... Ng3 {[%clk 0:00:41.3]} 25. Re1
{[%clk 0:00:34]} 25... h5 {[%clk 0:00:40.4]} 26. Nf1 {[%clk 0:00:25.3]} 26...
Bxc1 {[%clk 0:00:32.5]} 27. Raxc1 {[%clk 0:00:24.2]} 27... h4 {[%clk 0:00:19.7]}
28. Nxg3 {[%clk 0:00:22.3]} 28... Rxg3 {[%clk 0:00:19.2]} 29. Kf1 {[%clk
0:00:22.4]} 29... Rdg8 {[%clk 0:00:19]} 30. Rc2 {[%clk 0:00:22.6]} 30... R3g5
{[%clk 0:00:13.7]} 31. Re3 {[%clk 0:00:20.1]} 31... Kd6 {[%clk 0:00:11.8]} 32.
Rce2 {[%clk 0:00:20.6]} 32... b6 {[%clk 0:00:10.3]} 33. Re5 {[%clk 0:00:19.8]}
33... c5 {[%clk 0:00:10.2]} 34. Rxg5 {[%clk 0:00:19.3]} 34... Rxg5 {[%clk
0:00:10.4]} 35. Kf2 {[%clk 0:00:19.1]} 35... a5 {[%clk 0:00:09.3]} 36. Ke3
{[%clk 0:00:18.9]} 36... f6 {[%clk 0:00:07.8]} 37. Kd3 {[%clk 0:00:07.5]} 37...
a4 {[%clk 0:00:07.1]} 38. b3 {[%clk 0:00:07.3]} 38... a3 {[%clk 0:00:06.9]} 39.
c4 {[%clk 0:00:05.8]} 39... cxd4 {[%clk 0:00:07.2]} 40. Kxd4 {[%clk 0:00:06.7]}
40... e5+ {[%clk 0:00:07.5]} 41. Kc3 {[%clk 0:00:07]} 41... d4+ {[%clk
0:00:07.5]} 42. Kb4 {[%clk 0:00:07.3]} 42... f5 {[%clk 0:00:07.2]} 43. Kxa3
{[%clk 0:00:07.4]} 43... d3 {[%clk 0:00:07.5]} 44. Rd2 {[%clk 0:00:07.6]} 44...
e4 {[%clk 0:00:07.8]} 45. fxe4 {[%clk 0:00:08.5]} 45... fxe4 {[%clk 0:00:08.7]}
46. Kb4 {[%clk 0:00:09.1]} 46... Ke5 {[%clk 0:00:08.7]} 47. Kc3 {[%clk
0:00:09.6]} 47... Kf4 {[%clk 0:00:08.1]} 48. Kd4 {[%clk 0:00:05.6]} 48... Rg8
{[%clk 0:00:03.6]} 49. Rf2+ {[%clk 0:00:05.8]} 49... Kg3 {[%clk 0:00:03.9]} 50.
Ke3 {[%clk 0:00:05.7]} 50... Rd8 {[%clk 0:00:04]} 51. Rd2 {[%clk 0:00:05]} 1-0

[Event "*** Titled Tuesday Blitz"]
[Site "Chess.com"]
[Date "2021.04.27"]
[Round "7"]
[White "AlexSuv"]
[Black "MartinMatthiesen"]
[Result "1-0"]
[WhiteElo "2566"]
[BlackElo "2457"]
[TimeControl "180+1"]
[EndTime "11:17:28 PDT"]
[Termination "AlexSuv won by resignation"]

1. d4 {[%clk 0:02:58.9]} 1... Nf6 {[%clk 0:02:59]} 2. c4 {[%clk 0:02:58.2]} 2...
e6 {[%clk 0:02:59]} 3. Nc3 {[%clk 0:02:53.2]} 3... Bb4 {[%clk 0:02:58.4]} 4. e3
{[%clk 0:02:50.2]} 4... O-O {[%clk 0:02:55.5]} 5. Bd2 {[%clk 0:02:49.6]} 5... d5
{[%clk 0:02:54.9]} 6. Nf3 {[%clk 0:02:48.2]} 6... b6 {[%clk 0:02:54.4]} 7. cxd5
{[%clk 0:02:48]} 7... exd5 {[%clk 0:02:52.8]} 8. Rc1 {[%clk 0:02:48.4]} 8... Bb7
{[%clk 0:02:50.9]} 9. Ne5 {[%clk 0:02:47.7]} 9... Nbd7 {[%clk 0:02:40.1]} 10.
Bd3 {[%clk 0:02:40.3]} 10... Nxe5 {[%clk 0:02:28.7]} 11. dxe5 {[%clk 0:02:41.2]}
11... Bxc3 {[%clk 0:02:29]} 12. Bxc3 {[%clk 0:02:27.3]} 12... Ne4 {[%clk
0:02:27.8]} 13. Bxe4 {[%clk 0:02:17.6]} 13... dxe4 {[%clk 0:02:27.1]} 14. Qg4
{[%clk 0:02:18.3]} 14... Qd3 {[%clk 0:01:22.8]} 15. Rd1 {[%clk 0:02:17.9]} 15...
Qc4 {[%clk 0:01:21.6]} 16. e6 {[%clk 0:02:05.6]} 16... g6 {[%clk 0:01:21.2]} 17.
e7 {[%clk 0:01:46.3]} 17... Rfe8 {[%clk 0:01:19]} 18. Qd7 {[%clk 0:01:30.7]}
18... Ba6 {[%clk 0:01:10.4]} 19. Rd2 {[%clk 0:01:00.5]} 19... Qc5 {[%clk
0:00:19.7]} 20. h4 {[%clk 0:00:25.6]} 20... Qxe7 {[%clk 0:00:19]} 21. Qd4 {[%clk
0:00:23]} 21... f6 {[%clk 0:00:18.1]} 22. Qxf6 {[%clk 0:00:22.9]} 22... Qxf6
{[%clk 0:00:18.1]} 23. Bxf6 {[%clk 0:00:23.8]} 23... Re6 {[%clk 0:00:18.1]} 24.
Bc3 {[%clk 0:00:21.5]} 24... Rd6 {[%clk 0:00:17.5]} 25. Rxd6 {[%clk 0:00:20.5]}
25... cxd6 {[%clk 0:00:18.4]} 26. h5 {[%clk 0:00:21.3]} 26... gxh5 {[%clk
0:00:17]} 27. Rxh5 {[%clk 0:00:21]} 27... Rc8 {[%clk 0:00:16.8]} 28. Rg5+ {[%clk
0:00:21.2]} 28... Kf8 {[%clk 0:00:16.3]} 29. Rf5+ {[%clk 0:00:19.2]} 29... Kg8
{[%clk 0:00:16]} 30. Rg5+ {[%clk 0:00:14.6]} 30... Kf8 {[%clk 0:00:15.8]} 31.
Kd2 {[%clk 0:00:10.2]} 31... Bc4 {[%clk 0:00:14.5]} 32. Rg7 {[%clk 0:00:08.4]}
32... Bxa2 {[%clk 0:00:13.5]} 33. Rxa7 {[%clk 0:00:06.4]} 33... Bg8 {[%clk
0:00:11.9]} 34. Bb4 {[%clk 0:00:05.1]} 34... Rc6 {[%clk 0:00:11.2]} 35. Rb7
{[%clk 0:00:05.3]} 35... Ke8 {[%clk 0:00:10.6]} 36. Rb8+ {[%clk 0:00:05.4]}
36... Kf7 {[%clk 0:00:10.8]} 37. Bc3 {[%clk 0:00:05.5]} 37... h6 {[%clk
0:00:10.5]} 38. g4 {[%clk 0:00:05.4]} 38... Bh7 {[%clk 0:00:10.3]} 39. Bd4
{[%clk 0:00:05.6]} 39... Bg6 {[%clk 0:00:10.2]} 40. Rb7+ {[%clk 0:00:05.8]}
40... Ke6 {[%clk 0:00:10.2]} 41. Rg7 {[%clk 0:00:05.8]} 41... Be8 {[%clk
0:00:09.2]} 42. Rh7 {[%clk 0:00:06.1]} 42... d5 {[%clk 0:00:08]} 43. Rxh6+
{[%clk 0:00:06.3]} 43... Kd7 {[%clk 0:00:08.3]} 44. Rh7+ {[%clk 0:00:06.9]}
44... Kc8 {[%clk 0:00:07.3]} 45. Re7 {[%clk 0:00:06.8]} 45... Bd7 {[%clk
0:00:05.9]} 46. Re5 {[%clk 0:00:07.2]} 46... Bxg4 {[%clk 0:00:05.1]} 47. Rxd5
{[%clk 0:00:07.6]} 47... Bf3 {[%clk 0:00:05.1]} 48. Rf5 {[%clk 0:00:07.7]} 48...
Kb7 {[%clk 0:00:05.2]} 49. b4 {[%clk 0:00:07.4]} 49... Ka6 {[%clk 0:00:04.2]}
50. b5+ {[%clk 0:00:07.5]} 50... Kb7 {[%clk 0:00:04]} 51. bxc6+ {[%clk
0:00:06.5]} 1-0

[Event "*** Titled Tuesday Blitz"]
[Site "Chess.com"]
[Date "2021.04.27"]
[Round "7"]
[White "Ajedrez_con_German"]
[Black "Region_07"]
[Result "1-0"]
[WhiteElo "2525"]
[BlackElo "2380"]
[TimeControl "180+1"]
[EndTime "11:17:28 PDT"]
[Termination "Ajedrez_con_German won on time"]

1. d4 {[%clk 0:03:00.1]} 1... d5 {[%clk 0:02:58.8]} 2. Nf3 {[%clk 0:02:59.9]}
2... Nc6 {[%clk 0:02:57.9]} 3. Bf4 {[%clk 0:02:58]} 3... Bg4 {[%clk 0:02:57]} 4.
e3 {[%clk 0:02:58]} 4... Nf6 {[%clk 0:02:54.5]} 5. Be2 {[%clk 0:02:58.1]} 5...
e6 {[%clk 0:02:54.4]} 6. h3 {[%clk 0:02:57.3]} 6... Bh5 {[%clk 0:02:52.9]} 7.
Ne5 {[%clk 0:02:55.1]} 7... Bxe2 {[%clk 0:02:47]} 8. Qxe2 {[%clk 0:02:56]} 8...
Nxe5 {[%clk 0:02:45.2]} 9. Bxe5 {[%clk 0:02:56.8]} 9... Nd7 {[%clk 0:02:42.3]}
10. Bg3 {[%clk 0:02:52.2]} 10... Bd6 {[%clk 0:02:41.8]} 11. Bxd6 {[%clk
0:02:47.7]} 11... cxd6 {[%clk 0:02:42.7]} 12. O-O {[%clk 0:02:47.3]} 12... O-O
{[%clk 0:02:42.3]} 13. c3 {[%clk 0:02:38.9]} 13... Nf6 {[%clk 0:02:33.4]} 14.
Nd2 {[%clk 0:02:37.5]} 14... Rc8 {[%clk 0:02:32.2]} 15. Qb5 {[%clk 0:02:33.9]}
15... Qc7 {[%clk 0:02:24.5]} 16. a4 {[%clk 0:02:32.8]} 16... a6 {[%clk
0:02:16.5]} 17. Qb3 {[%clk 0:02:30.8]} 17... b6 {[%clk 0:02:09.6]} 18. Rfc1
{[%clk 0:02:25.5]} 18... Qc6 {[%clk 0:01:35.2]} 19. Qd1 {[%clk 0:02:24.2]} 19...
Rc7 {[%clk 0:01:32.2]} 20. Qe2 {[%clk 0:02:23.6]} 20... Qb7 {[%clk 0:01:27.9]}
21. Rc2 {[%clk 0:02:19.3]} 21... Rfc8 {[%clk 0:01:27.4]} 22. Rac1 {[%clk
0:02:18.6]} 22... b5 {[%clk 0:01:27.4]} 23. axb5 {[%clk 0:02:18.4]} 23... axb5
{[%clk 0:01:28.3]} 24. Qd1 {[%clk 0:02:05.1]} 24... h6 {[%clk 0:01:27.3]} 25. b3
{[%clk 0:01:55.2]} 25... Rc6 {[%clk 0:01:20.4]} 26. b4 {[%clk 0:01:45.4]} 26...
Qa6 {[%clk 0:00:53]} 27. f3 {[%clk 0:01:36.9]} 27... e5 {[%clk 0:00:45.9]} 28.
Nb3 {[%clk 0:01:34.8]} 28... Qa4 {[%clk 0:00:43.7]} 29. dxe5 {[%clk 0:01:23]}
29... dxe5 {[%clk 0:00:42.4]} 30. Nc5 {[%clk 0:01:21.7]} 30... Rxc5 {[%clk
0:00:27.8]} 31. bxc5 {[%clk 0:01:21.2]} 31... Rxc5 {[%clk 0:00:28.7]} 32. Rb2
{[%clk 0:01:13.1]} 32... Qa3 {[%clk 0:00:21]} 33. Qb3 {[%clk 0:01:07.7]} 33...
Qa6 {[%clk 0:00:19.8]} 34. Ra2 {[%clk 0:00:57.4]} 34... Qc6 {[%clk 0:00:19.5]}
35. Qa3 {[%clk 0:00:55]} 35... d4 {[%clk 0:00:19.2]} 36. Qa8+ {[%clk 0:00:54.4]}
36... Kh7 {[%clk 0:00:18.1]} 37. Qxc6 {[%clk 0:00:54.2]} 37... Rxc6 {[%clk
0:00:19]} 38. exd4 {[%clk 0:00:54.7]} 38... exd4 {[%clk 0:00:19.2]} 39. Rac2
{[%clk 0:00:54.8]} 39... dxc3 {[%clk 0:00:16.8]} 40. Rxc3 {[%clk 0:00:55.7]}
40... Rb6 {[%clk 0:00:13.6]} 41. Rc6 {[%clk 0:00:55.6]} 41... Rb8 {[%clk
0:00:11.8]} 42. Rc8 {[%clk 0:00:55.1]} 42... Rb6 {[%clk 0:00:11.1]} 43. R1c6
{[%clk 0:00:53.9]} 43... Rb7 {[%clk 0:00:09.3]} 44. R8c7 {[%clk 0:00:54]} 44...
Rxc7 {[%clk 0:00:09.4]} 45. Rxc7 {[%clk 0:00:54.4]} 45... Kg6 {[%clk 0:00:10.3]}
46. Rb7 {[%clk 0:00:54.3]} 46... h5 {[%clk 0:00:09.2]} 47. Rxb5 {[%clk
0:00:54.3]} 47... Kh7 {[%clk 0:00:05.5]} 48. Kf2 {[%clk 0:00:53.5]} 48... g6
{[%clk 0:00:04.8]} 49. Rb7 {[%clk 0:00:52.1]} 49... Kg7 {[%clk 0:00:05]} 50. Ra7
{[%clk 0:00:52.3]} 50... h4 {[%clk 0:00:05.1]} 51. Ke3 {[%clk 0:00:49.3]} 51...
Nh5 {[%clk 0:00:04.6]} 52. Ra4 {[%clk 0:00:44.6]} 52... g5 {[%clk 0:00:04.3]}
53. f4 {[%clk 0:00:36.3]} 53... Nxf4 {[%clk 0:00:02.9]} 54. Rxf4 {[%clk
0:00:36.3]} 54... gxf4+ {[%clk 0:00:03.8]} 55. Kxf4 {[%clk 0:00:37.1]} 55... Kg6
{[%clk 0:00:03.2]} 56. Kg4 {[%clk 0:00:37.5]} 56... Kf6 {[%clk 0:00:03.2]} 57.
Kxh4 {[%clk 0:00:37.9]} 57... Ke5 {[%clk 0:00:03.8]} 58. Kg5 {[%clk 0:00:35.7]}
58... f6+ {[%clk 0:00:01.4]} 59. Kg6 {[%clk 0:00:34.9]} 59... f5 {[%clk
0:00:01.1]} 60. h4 {[%clk 0:00:31.2]} 1-0